fUST/lending_fUST_20250226
["ID","MTS","AMOUNT","RATE_DAILY","PERIOD"]
[354454674,1740513035500,-158.922975,0.00028998,7]
[354454675,1740513035509,-158.922975,0.00028998,7]
[354454676,1740513035519,-329.894681,0.00028998,7]
[354454677,1740513035529,-158.922975,0.00028998,7]
[354454678,1740513035539,-329.894681,0.00028998,7]
[354454679,1740513035549,-329.894681,0.00028998,7]
[354454680,1740513035559,-329.894681,0.00028998,7]
[354454681,1740513035569,-329.894681,0.00028998,7]
[354454682,1740513035580,-329.894681,0.00028998,7]
[354454683,1740513035590,-329.894681,0.00028998,7]
[354454684,1740513035599,-329.894681,0.00028998,7]
[354454685,1740513035609,-158.922975,0.00028998,7]
[354454686,1740513035619,-158.922975,0.00028998,7]
[354454687,1740513035630,-158.922975,0.00028998,7]
[354454688,1740513035640,-151.0,0.00028998,7]
[354454689,1740513035649,-151.0,0.00028998,7]
[354454690,1740513035659,-151.0,0.00028998,7]
[354454691,1740513035669,-151.0,0.00028998,7]
[354454692,1740513035679,-151.0,0.00028998,7]
[354454693,1740513035689,-151.0,0.00028998,7]
[354454694,1740513035698,-151.0,0.00028998,7]
[354454695,1740513035708,-151.0,0.00028998,7]
[354454696,1740513035718,-231.005841,0.00028998,7]
[354454697,1740513035728,-231.005841,0.00028998,7]
[354454698,1740513035738,-231.005841,0.00028998,7]
[354454699,1740513035748,-231.005841,0.00028998,7]
[354454700,1740513035758,-231.005841,0.00028998,7]
[354454701,1740513035768,-231.005841,0.00028998,7]
[354454702,1740513035779,-783.318753,0.00028998,7]
[354454703,1740513035791,-783.318753,0.00028998,7]
[354454704,1740513035801,-783.318753,0.00028998,7]
[354454705,1740513035811,-783.318753,0.00028998,7]
[354454706,1740513035821,-783.318753,0.00028998,7]
[354454707,1740513035831,-783.318753,0.00028998,7]
[354454708,1740513035841,-299.712964,0.00028998,7]
[354454709,1740513035851,-299.712964,0.00028998,7]
[354454710,1740513035861,-299.712964,0.00028998,7]
[354454711,1740513035871,-299.712964,0.00028998,7]
[354454712,1740513035883,-188.507157,0.00028998,7]
[354454713,1740513035893,-299.712964,0.00028998,7]
[354454714,1740513035903,-188.507157,0.00028998,7]
[354454715,1740513035912,-299.712964,0.00028998,7]
[354454716,1740513035922,-188.507157,0.00028998,7]
[354454717,1740513035932,-188.507157,0.00028998,7]
[354454718,1740513035942,-188.507157,0.00028998,7]
[354454719,1740513035952,-188.507157,0.00028998,7]
[354454720,1740513035962,-1422.707372,0.00028998,7]
[354454721,1740513035972,-1422.707372,0.00028998,7]
[354454722,1740513035982,-1422.707372,0.00028998,7]
[354454723,1740513035991,-1422.707372,0.00028998,7]
[354454724,1740513036001,-1422.707372,0.00028998,7]
[354454725,1740513036011,-1422.707372,0.00028998,7]
[354454726,1740513036021,-1422.707372,0.00028998,7]
[354454727,1740513036030,-1422.707372,0.00028998,7]
[354454728,1740513036039,-284.410257,0.00028998,7]
[354454729,1740513036049,-284.410257,0.00028998,7]
[354454730,1740513036059,-284.410257,0.00028998,7]
[354454731,1740513036068,-284.410257,0.00028998,7]
[354454732,1740513036078,-284.410257,0.00028998,7]
[354454733,1740513036087,-284.410257,0.00028998,7]
[354454734,1740513036097,-284.410257,0.00028998,7]
[354454735,1740513036106,-284.410257,0.00028998,7]
[354454736,1740513036116,-151.0,0.00028998,7]
[354454737,1740513036125,-151.0,0.00028998,7]
[354454738,1740513036136,-151.0,0.00028998,7]
[354454739,1740513036145,-357.820138,0.00028998,7]
[354454740,1740513036155,-357.820138,0.00028998,7]
[354454741,1740513036164,-357.820138,0.00028998,7]
[354454742,1740513036174,-357.820138,0.00028998,7]
[354454743,1740513036183,-357.820138,0.00028998,7]
[354454744,1740513036193,-151.0,0.00028998,7]
[354454745,1740513036203,-357.820138,0.00028998,7]
[354454746,1740513036213,-151.0,0.00028998,7]
[354454747,1740513036223,-151.0,0.00028998,7]
[354454748,1740513036232,-151.0,0.00028998,7]
[354454749,1740513036242,-151.0,0.00028998,7]
[354454750,1740513036251,-151.0,0.00028998,7]
[354454751,1740513036262,-151.0,0.00028998,7]
[354454752,1740513036271,-151.0,0.00028998,7]
[354454753,1740513036281,-377.311236,0.00028998,7]
[354454754,1740513036291,-377.311236,0.00028998,7]
[354454755,1740513036300,-377.311236,0.00028998,7]
[354454756,1740513036310,-377.311236,0.00028998,7]
[354454757,1740513036319,-377.311236,0.00028998,7]
[354454758,1740513036329,-377.311236,0.00028998,7]
[354454759,1740513036339,-377.311236,0.00028998,7]
[354454760,1740513036348,-377.311236,0.00028998,7]
[354454761,1740513036358,-151.0,0.00028998,7]
[354454762,1740513036367,-151.0,0.00028998,7]
[354454763,1740513036378,-749.38444,0.00028998,7]
[354454764,1740513036388,-749.38444,0.00028998,7]
[354454765,1740513036397,-749.38444,0.00028998,7]
[354454766,1740513036407,-749.38444,0.00028998,7]
[354454767,1740513036416,-749.38444,0.00028998,7]
[354454768,1740513036426,-749.38444,0.00028998,7]
[354454769,1740513036436,-749.38444,0.00028998,7]
[354454770,1740513036446,-749.38444,0.00028998,7]
[354454771,1740513036455,-151.0,0.00028998,7]
[354454772,1740513036465,-151.0,0.00028998,7]
[354454773,1740513036475,-151.0,0.00028998,7]
[354454774,1740513036484,-151.477822,0.00028998,7]
[354454775,1740513036494,-151.0,0.00028998,7]
[354454776,1740513036503,-450.0,0.00028998,7]
[354454777,1740513036513,-450.0,0.00028998,7]
[354454778,1740513036522,-450.0,0.00028998,7]
[354454779,1740513036531,-450.0,0.00028998,7]
[354454780,1740513036541,-450.0,0.00028998,7]
[354454781,1740513036551,-450.0,0.00028998,7]
[354454782,1740513036560,-450.0,0.00028998,7]
[354454783,1740513036570,-450.0,0.00028998,7]
[354454784,1740513036579,-151.0,0.00028998,7]
[354454785,1740513036588,-151.0,0.00028998,7]
[354454786,1740513036598,-151.0,0.00028998,7]
[354454787,1740513036607,-151.0,0.00028998,7]
[354454788,1740513036617,-173.514978,0.00028998,7]
[354454789,1740513036627,-498.318475,0.00028998,3]
[354454790,1740513036637,-498.318475,0.00028998,3]
[354454791,1740513036647,-498.318475,0.00028998,3]
[354454792,1740513036656,-498.318475,0.00028998,3]
[354454793,1740513036666,-498.318475,0.00028998,3]
[354454794,1740513036675,-498.318475,0.00028998,3]
[354454795,1740513036685,-326.214821,0.00028998,7]
[354454796,1740513036695,-326.214821,0.00028998,7]
[354454797,1740513036704,-326.214821,0.00028998,7]
[354454798,1740513036713,-326.214821,0.00028998,7]
[354454799,1740513036723,-326.214821,0.00028998,7]
[354454800,1740513036733,-326.214821,0.00028998,7]
[354454801,1740513036742,-151.0,0.00028998,7]
[354454802,1740513036752,-151.097047,0.00028998,7]
[354454803,1740513036762,-271.548347,0.00028998,7]
[354454804,1740513036772,-271.548347,0.00028998,7]
[354454805,1740513036785,-271.548347,0.00028998,7]
[354454806,1740513036794,-271.548347,0.00028998,7]
[354454807,1740513036804,-271.548347,0.00028998,7]
[354454808,1740513036815,-271.548347,0.00028998,7]
[354454809,1740513036824,-151.0,0.00028998,7]
[354454810,1740513036834,-320.699884,0.00028998,7]
[354454811,1740513036843,-320.699884,0.00028998,7]
[354454812,1740513036853,-320.699884,0.00028998,7]
[354454813,1740513036863,-461.317035,0.00028998,7]
[354454814,1740513036872,-461.317035,0.00028998,7]
[354454815,1740513036884,-461.317035,0.00028998,7]
[354454816,1740513036893,-320.699884,0.00028998,7]
[354454817,1740513036902,-320.699884,0.00028998,7]
[354454818,1740513036911,-320.699884,0.00028998,7]
[354454819,1740513036921,-151.0,0.00028998,7]
[354454820,1740513036931,-151.0,0.00028998,7]
[354454821,1740513036940,-151.0,0.00028998,7]
[354454822,1740513036950,-461.317035,0.00028998,7]
[354454823,1740513036959,-461.317035,0.00028998,7]
[354454824,1740513036969,-199.99,0.00028998,7]
[354454825,1740513036978,-500.0,0.00028998,2]
[354454826,1740513036988,-210.81755345,0.00028998,2]
[354454827,1740513036998,-500.0,0.00028998,2]
[354454828,1740513037007,-200.7597062,0.00028998,2]
[354454829,1740513037017,-500.0,0.00028998,2]
[354454830,1740513037026,-500.0,0.00028998,2]
[354454831,1740513037035,-500.0,0.00028998,2]
[354454832,1740513037044,-461.317035,0.00028998,7]
[354454833,1740513037053,-500.0,0.00028998,2]
[354454834,1740513037062,-500.0,0.00028998,2]
[354454835,1740513037072,-500.0,0.00028998,2]
[354454836,1740513037081,-500.0,0.00028998,2]
[354454837,1740513037091,-199.99,0.00028998,7]
[354454838,1740513037100,-500.0,0.00028998,2]
[354454839,1740513037110,-500.0,0.00028998,2]
[354454840,1740513037120,-299.22989349,0.00028998,2]
[354454841,1740513037132,-500.0,0.00028998,2]
[354454842,1740513037142,-198.44016292,0.00028998,2]
[354454843,1740513037152,-500.0,0.00028998,2]
[354454844,1740513037161,-213.03487315,0.00028998,2]
[354454845,1740513037171,-500.0,0.00028998,2]
[354454846,1740513037181,-500.0,0.00028998,2]
[354454847,1740513037191,-199.99,0.00028998,7]
[354454848,1740513037200,-151.0,0.00028999,7]
[354454849,1740513037210,-236.0,0.00028999,7]
[354454850,1740513037219,-368.211366,0.00028999,7]
[354454851,1740513037229,-368.211366,0.00028999,7]
[354454852,1740513037238,-368.211366,0.00028999,7]
[354454853,1740513037247,-368.211366,0.00028999,7]
[354454854,1740513037256,-368.211366,0.00028999,7]
[354454855,1740513037265,-368.211366,0.00028999,7]
[354454856,1740513037274,-230.065935,0.00028999,7]
[354454857,1740513037284,-151.0,0.00028999,7]
[354454858,1740513037294,-151.0,0.00028999,7]
[354454859,1740513037303,-329.894681,0.00028999,7]
[354454860,1740513037312,-329.894681,0.00028999,7]
[354454861,1740513037322,-329.894681,0.00028999,7]
[354454862,1740513037331,-158.922975,0.00028999,7]
[354454863,1740513037341,-158.922975,0.00028999,7]
[354454864,1740513037350,-329.894681,0.00028999,7]
[354454865,1740513037359,-329.894681,0.00028999,7]
[354454866,1740513037369,-329.894681,0.00028999,7]
[354454867,1740513037378,-158.922975,0.00028999,7]
[354454868,1740513037516,-158.922975,0.00028999,7]
[354454869,1740513037540,-151.0,0.00028999,7]
[354454870,1740513037551,-151.0,0.00028999,7]
[354454871,1740513037560,-151.0,0.00028999,7]
[354454872,1740513037570,-151.0,0.00028999,7]
[354454873,1740513037580,-151.0,0.00028999,7]
[354454874,1740513037590,-202.182514,0.00028999,7]
[354454875,1740513037599,-231.005841,0.00028999,7]
[354454876,1740513037609,-231.005841,0.00028999,7]
[354454877,1740513037618,-231.005841,0.00028999,7]
[354454878,1740513037630,-231.005841,0.00028999,7]
[354454879,1740513037639,-231.005841,0.00028999,7]
[354454880,1740513037648,-231.005841,0.00028999,7]
[354454881,1740513037657,-783.318753,0.00028999,7]
[354454882,1740513037666,-783.318753,0.00028999,7]
[354454883,1740513037675,-783.318753,0.00028999,7]
[354454884,1740513037685,-783.318753,0.00028999,7]
[354454885,1740513037694,-783.318753,0.00028999,7]
[354454886,1740513037704,-783.318753,0.00028999,7]
[354454887,1740513037713,-299.712964,0.00028999,7]
[354454888,1740513037722,-299.712964,0.00028999,7]
[354454889,1740513037731,-299.712964,0.00028999,7]
[354454890,1740513037741,-299.712964,0.00028999,7]
[354454891,1740513037750,-188.507157,0.00028999,7]
[354454892,1740513037760,-299.712964,0.00028999,7]
[354454893,1740513037769,-188.507157,0.00028999,7]
[354454894,1740513037779,-299.712964,0.00028999,7]
[354454895,1740513037789,-188.507157,0.00028999,7]
[354454896,1740513037800,-188.507157,0.00028999,7]
[354454897,1740513037809,-188.507157,0.00028999,7]
[354454898,1740513037819,-188.507157,0.00028999,7]
[354454899,1740513037828,-1071.27159982,0.00028999,7]
[354454923,1740513039605,-199.99,0.00028995,7]
[354454924,1740513039615,-264.97799901,0.00028995,7]
[354454925,1740513039626,-101.92089799,0.00028995,7]
[354454926,1740513039637,-199.99,0.00028997,7]
[354454927,1740513039647,-366.898897,0.00028997,7]
[354454928,1740513039656,-545.619444,0.00028998,28]
[354454929,1740513039666,-199.99,0.00028998,7]
[354454930,1740513039675,-366.898897,0.00028998,7]
[354454931,1740513039685,-366.898897,0.00028998,7]
[354454932,1740513039694,-199.99,0.00028998,7]
[354454933,1740513039704,-366.898897,0.00028998,7]
[354454934,1740513039714,-199.99,0.00028998,7]
[354454935,1740513039724,-351.43577218,0.00028999,7]
[354454936,1740513039733,-1422.707372,0.00028999,7]
[354454937,1740513039743,-1422.707372,0.00028999,7]
[354454938,1740513039753,-1422.707372,0.00028999,7]
[354454939,1740513039764,-284.410257,0.00028999,7]
[354454940,1740513039776,-284.410257,0.00028999,7]
[354454941,1740513039789,-284.410257,0.00028999,7]
[354454942,1740513039798,-284.410257,0.00028999,7]
[354454943,1740513039808,-151.0,0.00028999,7]
[354454944,1740513039819,-151.0,0.00028999,7]
[354454945,1740513039828,-151.0,0.00028999,7]
[354454946,1740513039838,-357.820138,0.00028999,7]
[354454947,1740513039847,-357.820138,0.00028999,7]
[354454948,1740513039858,-357.820138,0.00028999,7]
[354454949,1740513039868,-357.820138,0.00028999,7]
[354454950,1740513039878,-357.820138,0.00028999,7]
[354454951,1740513039889,-151.0,0.00028999,7]
[354454952,1740513039899,-142.84109734,0.00028999,7]
[354454953,1740513039911,-214.97904066,0.00028999,7]
[354454954,1740513039920,-151.0,0.00028999,7]
[354454955,1740513039930,-151.0,0.00028999,7]
[354454956,1740513039939,-151.0,0.00028999,7]
[354454957,1740513039950,-377.311236,0.00028999,7]
[354454958,1740513039960,-377.311236,0.00028999,7]
[354454959,1740513039970,-377.311236,0.00028999,7]
[354454961,1740513039979,-377.311236,0.00028999,7]
[354454963,1740513039989,-174.463538,0.00028999,7]
[354454965,1740513039998,-749.38444,0.00028999,7]
[354454967,1740513040009,-749.38444,0.00028999,7]
[354454969,1740513040019,-571.93215226,0.00028999,7]
[354454984,1740513040832,-366.898897,0.00028995,7]
[354454985,1740513040849,-366.898897,0.00028997,7]
[354454986,1740513040868,-366.898897,0.00028998,7]
[354454987,1740513040884,-366.898897,0.00028998,7]
[354454988,1740513040900,-177.45228774,0.00028999,7]
[354454989,1740513040917,-749.38444,0.00028999,7]
[354454990,1740513040933,-151.0,0.00028999,7]
[354454992,1740513040948,-151.0,0.00028999,7]
[354454993,1740513040965,-450.0,0.00028999,7]
[354454994,1740513040981,-450.0,0.00028999,7]
[354454995,1740513040998,-450.0,0.00028999,7]
[354454996,1740513041013,-450.0,0.00028999,7]
[354454997,1740513041029,-151.0,0.00028999,7]
[354454998,1740513041045,-151.0,0.00028999,7]
[354454999,1740513041061,-151.0,0.00028999,7]
[354455000,1740513041076,-498.318475,0.00028999,3]
[354455001,1740513041091,-498.318475,0.00028999,3]
[354455002,1740513041106,-498.318475,0.00028999,3]
[354455003,1740513041121,-498.318475,0.00028999,3]
[354455004,1740513041138,-498.318475,0.00028999,3]
[354455005,1740513041153,-498.318475,0.00028999,3]
[354455006,1740513041169,-326.214821,0.00028999,7]
[354455007,1740513041184,-326.214821,0.00028999,7]
[354455008,1740513041200,-326.214821,0.00028999,7]
[354455009,1740513041215,-326.214821,0.00028999,7]
[354455010,1740513041230,-326.214821,0.00028999,7]
[354455011,1740513041245,-326.214821,0.00028999,7]
[354455012,1740513041261,-271.548347,0.00028999,7]
[354455013,1740513041276,-271.548347,0.00028999,7]
[354455014,1740513041291,-271.548347,0.00028999,7]
[354455015,1740513041307,-271.548347,0.00028999,7]
[354455016,1740513041323,-271.548347,0.00028999,7]
[354455017,1740513041339,-271.548347,0.00028999,7]
[354455018,1740513041355,-320.699884,0.00028999,7]
[354455019,1740513041371,-320.699884,0.00028999,7]
[354455020,1740513041387,-320.699884,0.00028999,7]
[354455021,1740513041403,-461.317035,0.00028999,7]
[354455022,1740513041418,-461.317035,0.00028999,7]
[354455023,1740513041433,-461.317035,0.00028999,7]
[354455024,1740513041448,-320.699884,0.00028999,7]
[354455025,1740513041462,-320.699884,0.00028999,7]
[354455026,1740513041472,-320.699884,0.00028999,7]
[354455027,1740513041481,-151.0,0.00028999,7]
[354455028,1740513041491,-238.25707,0.00028999,7]
[354455029,1740513041500,-461.317035,0.00028999,7]
[354455030,1740513041510,-461.317035,0.00028999,7]
[354455031,1740513041519,-199.99,0.00028999,7]
[354455032,1740513041529,-199.99,0.00028999,7]
[354455033,1740513041538,-461.317035,0.00028999,7]
[354455034,1740513041547,-199.99,0.00028999,7]
[354455035,1740513041557,-366.898897,0.00028999,7]
[354455036,1740513041568,-199.99,0.00028999,7]
[354455037,1740513041578,-199.99,0.00028999,7]
[354455038,1740513041588,-366.898897,0.00028999,7]
[354455039,1740513041598,-199.99,0.00028999,7]
[354455040,1740513041607,-366.898897,0.00028999,7]
[354455041,1740513041617,-72680.60866554,0.00029,2]
[354455123,1740514235070,-560.19316211,0.00023969,10]
[354455125,1740514235080,-300.0,0.00027491,2]
[354455127,1740514235090,-24900.0,0.00027492,2]
[354455129,1740514235100,-1088.29065798,0.00028319,51]
[354455144,1740514237750,-921.14611722,0.00028319,51]
[354455145,1740514237760,-279.3042577,0.00028419,4]
[354455146,1740514237770,-166.31016283,0.0002889,2]
[354455147,1740514237780,-71.48215995,0.00028973,5]
[354455148,1740514237792,-279.05684057,0.00028973,5]
[354455149,1740514237802,-500.0,0.00028973,5]
[354455150,1740514237812,-500.0,0.00028973,2]
[354455151,1740514237821,-500.0,0.00028973,5]
[354455152,1740514237831,-500.0,0.00028973,5]
[354455153,1740514237841,-500.0,0.00028973,5]
[354455154,1740514237851,-1000.0,0.0002899,7]
[354455155,1740514237860,-271.84803138,0.00028999,2]
[354455156,1740514237870,-220.66808216,0.00029,2]
[354455164,1740514240001,-439.70307362,0.00029,2]
[354455197,1740514245814,-48410.73767041,0.00029,2]
[354455198,1740514245824,-349.0,0.00029,7]
[354455199,1740514245834,-311.0,0.0002923,29]
[354455200,1740514245844,-420.0,0.00029706,2]
[354455201,1740514245854,-247.80084256,0.000299,5]
[354455202,1740514245864,-157.56,0.0003,2]
[354455203,1740514245873,-245.0,0.0003,2]
[354455204,1740514245883,-247.80084234,0.00030762,5]
[354455205,1740514245894,-500.0,0.000312,5]
[354455206,1740514245905,-175.14282837,0.00031258,2]
[354455207,1740514245915,-311.0,0.0003133,35]
[354455208,1740514245925,-247.80084234,0.00031624,6]
[354455209,1740514245936,-247.80084234,0.00032486,6]
[354455210,1740514245946,-170.90528904,0.00033,120]
[354455211,1740514245956,-247.80084234,0.00033348,6]
[354455212,1740514245966,-476.0,0.0003344,41]
[354455213,1740514245976,-735.454,0.00033715,36]
[354455214,1740514245987,-2009.4367752,0.00033748,83]
[354455215,1740514245996,-247.80084234,0.0003421,6]
[354455216,1740514246006,-166.31016283,0.00034314,2]
[354455217,1740514246016,-1000.0,0.00034452,5]
[354455218,1740514246026,-1000.0,0.00034452,2]
[354455219,1740514246035,-1000.0,0.00034452,5]
[354455220,1740514246045,-1000.0,0.00034452,5]
[354455221,1740514246054,-1000.0,0.00034452,5]
[354455222,1740514246064,-271.33623866,0.00035,120]
[354455223,1740514246074,-247.80084234,0.00035072,7]
[354455224,1740514246084,-247.80084234,0.00035934,7]
[354455225,1740514246094,-1000.0,0.00036679,5]
[354455226,1740514246104,-1583.44440811,0.00036724,30]
[354455227,1740514246113,-247.80084234,0.00036797,7]
[354455228,1740514246123,-247.80084234,0.00037659,7]
[354455229,1740514246133,-1500.0,0.00037948,60]
[354455230,1740514246147,-1381.25454253,0.00037963,3]
[354455231,1740514246157,-500.0,0.00037973,5]
[354455232,1740514246167,-500.0,0.00037973,5]
[354455233,1740514246177,-500.0,0.00037973,5]
[354455234,1740514246186,-500.0,0.00037973,5]
[354455235,1740514246195,-500.0,0.00037973,5]
[354455236,1740514246205,-500.0,0.00037973,5]
[354455237,1740514246215,-500.0,0.00037973,5]
[354455238,1740514246225,-500.0,0.00037973,5]
[354455239,1740514246235,-500.0,0.00037973,5]
[354455240,1740514246244,-500.0,0.00037973,5]
[354455241,1740514246254,-500.0,0.00037973,5]
[354455242,1740514246264,-500.0,0.00037973,5]
[354455243,1740514246274,-500.0,0.00037973,5]
[354455244,1740514246284,-326.19620691,0.00038,120]
[354455245,1740514246294,-27010.8,0.00038,30]
[354455246,1740514246304,-151.0,0.00038,14]
[354455247,1740514246314,-151.0,0.00038,14]
[354455248,1740514246324,-151.0,0.00038,14]
[354455249,1740514246334,-151.0,0.00038,14]
[354455250,1740514246344,-151.0,0.00038,14]
[354455251,1740514246354,-151.0,0.00038,14]
[354455252,1740514246364,-151.0,0.00038,14]
[354455253,1740514246374,-151.0,0.00038,14]
[354455254,1740514246383,-151.0,0.00038,14]
[354455255,1740514246393,-151.0,0.00038,14]
[354455256,1740514246403,-151.0,0.00038,14]
[354455257,1740514246412,-151.0,0.00038,14]
[354455258,1740514246422,-500.0,0.00038293,5]
[354455259,1740514246431,-500.0,0.00038293,5]
[354455260,1740514246441,-500.0,0.00038356,30]
[354455261,1740514246450,-247.80084234,0.00038521,8]
[354455262,1740514246460,-500.0,0.0003863,32]
[354455263,1740514246470,-150.0,0.00038808,2]
[354455264,1740514246480,-295.974,0.00038808,2]
[354455265,1740514246489,-150.193,0.00038808,2]
[354455266,1740514246499,-150.597,0.00038808,2]
[354455267,1740514246509,-150.0,0.00038808,2]
[354455268,1740514246519,-248.318,0.00038808,2]
[354455269,1740514246529,-150.12,0.00038808,2]
[354455270,1740514246539,-150.952,0.00038808,2]
[354455271,1740514246549,-557.06,0.00038808,2]
[354455272,1740514246560,-1964.0,0.00038808,2]
[354455273,1740514246570,-2283.0,0.00038808,2]
[354455274,1740514246580,-398.192,0.00038808,2]
[354455275,1740514246590,-500.0,0.00038904,34]
[354455276,1740514246601,-1381.25454253,0.00039168,3]
[354455277,1740514246612,-2009.4367752,0.00039178,115]
[354455278,1740514246622,-500.0,0.00039178,36]
[354455279,1740514246632,-151.0,0.00039315,14]
[354455280,1740514246642,-151.0,0.00039315,14]
[354455281,1740514246658,-288.277791,0.00039315,14]
[354455282,1740514246668,-247.80084234,0.00039383,8]
[354455283,1740514246679,-151.0,0.00039407,14]
[354455284,1740514246689,-151.0,0.00039407,14]
[354455285,1740514246699,-234.995626,0.00039407,14]
[354455286,1740514246709,-234.995626,0.00039407,14]
[354455287,1740514246719,-151.0,0.00039452,3]
[354455288,1740514246729,-151.0,0.00039452,14]
[354455289,1740514246738,-151.0,0.00039452,14]
[354455290,1740514246748,-151.0,0.00039452,14]
[354455291,1740514246757,-500.0,0.00039452,38]
[354455292,1740514246767,-151.0,0.00039452,14]
[354455293,1740514246776,-151.0,0.00039452,14]
[354455294,1740514246786,-500.0,0.00039509,5]
[354455295,1740514246795,-510.72161371,0.00039509,5]
[354455296,1740514246805,-151.0,0.00039723,14]
[354455297,1740514246815,-151.0,0.00039723,14]
[354455298,1740514246825,-151.0,0.00039723,14]
[354455299,1740514246835,-151.0,0.00039723,14]
[354455300,1740514246845,-151.0,0.00039723,14]
[354455301,1740514246855,-151.0,0.00039723,14]
[354455302,1740514246864,-151.0,0.00039723,14]
[354455303,1740514246873,-151.0,0.00039723,14]
[354455304,1740514246882,-151.0,0.00039723,14]
[354455305,1740514246893,-151.0,0.00039723,14]
[354455306,1740514246905,-196.461541,0.00039723,14]
[354455307,1740514246914,-151.0,0.00039723,14]
[354455308,1740514246924,-224.815332,0.00039723,14]
[354455309,1740514246933,-224.815332,0.00039723,14]
[354455310,1740514246942,-151.0,0.00039723,14]
[354455311,1740514246952,-151.0,0.00039723,14]
[354455312,1740514246961,-500.0,0.00039723,25]
[354455313,1740514246971,-500.0,0.00039726,40]
[354455314,1740514246981,-166.31016283,0.00039737,2]
[354455315,1740514246990,-500.0,0.00039823,65]
[354455316,1740514247000,-1000.0,0.0004,90]
[354455317,1740514247010,-2000.0,0.0004,30]
[354455318,1740514247020,-226.19805172,0.0004,120]
[354455319,1740514247029,-151.0,0.0004,14]
[354455320,1740514247039,-219.240562,0.0004,14]
[354455321,1740514247049,-151.0,0.0004,14]
[354455322,1740514247058,-151.0,0.0004,14]
[354455323,1740514247067,-500.0,0.0004,42]
[354455324,1740514247077,-5455.0,0.0004,120]
[354455325,1740514247087,-366.79013869,0.00040073,5]
[354455326,1740514247096,-500.0,0.00040073,5]
[354455327,1740514247106,-500.0,0.00040073,5]
[354455328,1740514247115,-500.0,0.00040073,5]
[354455329,1740514247125,-500.0,0.00040073,5]
[354455330,1740514247150,-500.0,0.00040073,5]
[354455331,1740514247173,-500.0,0.00040073,5]
[354455332,1740514247197,-500.0,0.00040073,5]
[354455333,1740514247221,-190.3072583,0.00040073,5]
[354455334,1740514247246,-500.0,0.00040073,5]
[354455335,1740514247269,-256.97682347,0.00040073,5]
[354455336,1740514247291,-500.0,0.00040073,5]
[354455337,1740514247313,-1381.25454253,0.0004009,4]
[354455338,1740514247334,-468.11498591,0.00040099,31]
[354455339,1740514247344,-500.0,0.00040099,31]
[354455340,1740514247354,-255.46998817,0.00040099,31]
[354455341,1740514247363,-188.71557366,0.00040099,2]
[354455342,1740514247373,-500.0,0.00040099,31]
[354455343,1740514247383,-438.07979134,0.00040099,31]
[354455344,1740514247392,-1000.0,0.000401,90]
[354455345,1740514247403,-27010.8,0.000401,30]
[354455346,1740514247412,-151.0,0.000401,14]
[354455347,1740514247422,-151.0,0.000401,14]
[354455348,1740514247431,-151.0,0.000401,3]
[354455349,1740514247440,-151.0,0.000401,14]
[354455350,1740514247450,-151.0,0.000401,14]
[354455351,1740514247459,-151.0,0.000401,14]
[354455352,1740514247469,-151.0,0.000401,14]
[354455353,1740514247478,-151.0,0.000401,14]